fUSD/lending_fUSD_20241219
["ID","MTS","AMOUNT","RATE_DAILY","PERIOD"]
[346008524,1734622248083,-500.0,0.00022465,4]
[346008525,1734622248093,-270.17466692,0.00022465,4]
[346008526,1734622248105,-500.0,0.00022465,4]
[346008527,1734622248114,-500.0,0.00022465,4]
[346008528,1734622248124,-500.0,0.00022465,4]
[346008529,1734622248133,-500.0,0.00022465,4]
[346008530,1734622248144,-500.0,0.00022465,4]
[346008531,1734622248155,-500.0,0.00022465,4]
[346008532,1734622248164,-500.0,0.00022465,4]
[346008533,1734622248174,-500.0,0.00022465,4]
[346008534,1734622248185,-500.0,0.00022465,4]
[346008535,1734622248196,-500.0,0.00022465,4]
[346008536,1734622248206,-1263.3,0.00022465,4]
[346008537,1734622248216,-259.1,0.00022465,4]
[346008538,1734622248227,-2050.87,0.00022465,4]
[346008539,1734622248238,-500.0,0.00022465,4]
[346008540,1734622248248,-500.0,0.00022465,4]
[346008541,1734622248258,-500.0,0.00022465,4]
[346008542,1734622248268,-585.97,0.00022465,4]
[346008543,1734622248278,-338.8,0.00022465,4]
[346008544,1734622248288,-500.0,0.00022465,4]
[346008545,1734622248298,-500.0,0.00022465,4]
[346008546,1734622248313,-500.0,0.00022465,4]
[346008547,1734622248322,-500.0,0.00022465,4]
[346008548,1734622248335,-758.23,0.00022465,4]
[346008549,1734622248345,-500.0,0.00022465,4]
[346008550,1734622248355,-500.0,0.00022465,4]
[346008551,1734622248365,-500.0,0.00022465,4]
[346008552,1734622248375,-500.0,0.00022465,4]
[346008553,1734622248385,-500.0,0.00022465,4]
[346008554,1734622248395,-500.0,0.00022465,4]
[346008555,1734622248405,-500.0,0.00022465,4]
[346008556,1734622248415,-500.0,0.00022465,4]
[346008557,1734622248424,-500.0,0.00022465,4]
[346008558,1734622248434,-500.0,0.00022465,4]
[346008559,1734622248443,-879.33,0.00022465,4]
[346008560,1734622248453,-846.48,0.00022465,4]
[346008561,1734622248463,-500.0,0.00022465,4]
[346008562,1734622248473,-500.0,0.00022465,4]
[346008563,1734622248483,-500.0,0.00022465,4]
[346008564,1734622248493,-1741.38,0.00022465,4]
[346008565,1734622248503,-1708.14,0.00022465,4]
[346008566,1734622248512,-884.91,0.00022465,4]
[346008567,1734622248523,-500.0,0.00022465,4]
[346008568,1734622248533,-632.57,0.00022465,4]
[346008569,1734622248542,-500.0,0.00022465,4]
[346008570,1734622248552,-263.49186508,0.00022465,4]
[346008571,1734622248567,-608.39,0.00022465,4]
[346008572,1734622248576,-500.0,0.00022465,4]
[346008573,1734622248587,-692.42,0.00022465,4]
[346008574,1734622248596,-500.0,0.00022465,4]
[346008575,1734622248606,-500.0,0.00022465,4]
[346008576,1734622248615,-500.0,0.00022465,4]
[346008577,1734622248624,-500.0,0.00022465,4]
[346008578,1734622248634,-500.0,0.00022465,4]
[346008579,1734622248643,-500.0,0.00022465,4]
[346008580,1734622248654,-500.0,0.00022465,4]
[346008581,1734622248663,-532.29,0.00022465,4]
[346008582,1734622248672,-500.0,0.00022465,4]
[346008583,1734622248682,-500.0,0.00022465,4]
[346008584,1734622248691,-500.0,0.00022465,4]
[346008585,1734622248701,-689.26,0.00022465,4]
[346008586,1734622248710,-500.0,0.00022465,4]
[346008587,1734622248720,-500.0,0.00022465,4]
[346008588,1734622248730,-184.06,0.00022465,4]
[346008589,1734622248740,-556.73,0.00022465,4]
[346008590,1734622248750,-1204.5,0.00022465,4]
[346008591,1734622248759,-500.0,0.00022465,4]
[346008592,1734622248769,-654.56,0.00022465,4]
[346008593,1734622248779,-500.0,0.00022465,4]
[346008594,1734622248789,-619.34,0.00022465,4]
[346008595,1734622248798,-500.0,0.00022465,4]
[346008596,1734622248810,-500.0,0.00022465,4]
[346008597,1734622248820,-500.0,0.00022465,4]
[346008598,1734622248830,-551.62,0.00022465,4]
[346008599,1734622248840,-500.0,0.00022465,4]
[346008600,1734622248849,-500.0,0.00022465,4]
[346008601,1734622248859,-508.97,0.00022465,4]
[346008602,1734622248868,-1149.38,0.00022465,4]
[346008603,1734622248878,-500.0,0.00022465,4]
[346008604,1734622248888,-500.0,0.00022465,4]
[346008605,1734622248897,-500.0,0.00022465,4]
[346008606,1734622248907,-861.63,0.00022465,4]
[346008607,1734622248917,-500.0,0.00022465,4]
[346008608,1734622248927,-504.23,0.00022465,4]
[346008609,1734622248936,-500.0,0.00022465,4]
[346008610,1734622248946,-500.0,0.00022465,4]
[346008611,1734622248956,-500.0,0.00022465,4]
[346008612,1734622248966,-500.0,0.00022465,4]
[346008613,1734622248975,-500.0,0.00022465,4]
[346008614,1734622248985,-494.62,0.00022489,2]
[346008615,1734622248995,-497.04,0.00022489,2]
[346008616,1734622249004,-507.41,0.00022489,2]
[346008617,1734622249014,-500.0,0.00022521,2]
[346008618,1734622249023,-500.0,0.00022521,2]
[346008619,1734622249032,-150.0,0.0002254,4]
[346008620,1734622249042,-150.0,0.0002254,4]
[346008621,1734622249052,-6219.30047888,0.00022587,2]
[346008622,1734622249067,-150.0,0.00022697,4]
[346008623,1734622249077,-505.12,0.00022717,2]
[346008624,1734622249087,-502.56,0.00022717,2]
[346008625,1734622249097,-500.0,0.00022739,4]
[346008626,1734622249107,-500.0,0.00022739,4]
[346008627,1734622249116,-500.0,0.00022739,4]
[346008628,1734622249126,-500.0,0.00022739,4]
[346008629,1734622249137,-500.0,0.00022739,4]
[346008630,1734622249150,-500.0,0.00022739,4]
[346008631,1734622249160,-500.0,0.00022739,4]
[346008632,1734622249169,-500.0,0.00022739,4]
[346008633,1734622249180,-500.0,0.00022739,4]
[346008634,1734622249190,-594.82784906,0.00022739,4]
[346008635,1734622249201,-500.0,0.00022739,4]
[346008636,1734622249211,-500.0,0.00022739,4]
[346008637,1734622249220,-500.0,0.00022739,4]
[346008638,1734622249231,-500.0,0.00022739,4]
[346008639,1734622249241,-500.0,0.00022739,4]
[346008640,1734622249251,-440.60179995,0.00022739,4]
[346008641,1734622249260,-500.0,0.00022739,4]
[346008642,1734622249271,-500.0,0.00022739,4]
[346008643,1734622249281,-500.0,0.00022739,4]
[346008644,1734622249291,-333.40579911,0.00022739,4]
[346008645,1734622249300,-581.08669653,0.00022739,4]
[346008646,1734622249314,-500.0,0.00022739,4]
[346008647,1734622249324,-500.0,0.00022739,4]
[346008648,1734622249333,-1263.3,0.00022739,4]
[346008649,1734622249343,-2050.87,0.00022739,4]
[346008650,1734622249353,-500.0,0.00022739,4]
[346008651,1734622249363,-500.0,0.00022739,4]
[346008652,1734622249374,-500.0,0.00022739,4]
[346008653,1734622249384,-500.0,0.00022739,4]
[346008654,1734622249394,-585.97,0.00022739,4]
[346008655,1734622249404,-500.0,0.00022739,4]
[346008656,1734622249414,-500.0,0.00022739,4]
[346008657,1734622249424,-758.23,0.00022739,4]
[346008658,1734622249433,-500.0,0.00022739,4]
[346008659,1734622249443,-500.0,0.00022739,4]
[346008660,1734622249452,-500.0,0.00022739,4]
[346008661,1734622249462,-500.0,0.00022739,4]
[346008662,1734622249472,-500.0,0.00022739,4]
[346008663,1734622249481,-500.0,0.00022739,4]
[346008664,1734622249491,-500.0,0.00022739,4]
[346008665,1734622249500,-500.0,0.00022739,4]
[346008666,1734622249511,-500.0,0.00022739,4]
[346008667,1734622249520,-500.0,0.00022739,4]
[346008668,1734622249529,-879.33,0.00022739,4]
[346008669,1734622249539,-846.48,0.00022739,4]
[346008670,1734622249547,-500.0,0.00022739,4]
[346008671,1734622249558,-500.0,0.00022739,4]
[346008672,1734622249567,-500.0,0.00022739,4]
[346008673,1734622249577,-1741.38,0.00022739,4]
[346008674,1734622249586,-1708.14,0.00022739,4]
[346008675,1734622249596,-884.91,0.00022739,4]
[346008676,1734622249605,-500.0,0.00022739,4]
[346008677,1734622249615,-632.57,0.00022739,4]
[346008678,1734622249625,-500.0,0.00022739,4]
[346008679,1734622249634,-608.39,0.00022739,4]
[346008680,1734622249643,-500.0,0.00022739,4]
[346008681,1734622249653,-692.42,0.00022739,4]
[346008682,1734622249662,-500.0,0.00022739,4]
[346008683,1734622249671,-500.0,0.00022739,4]
[346008684,1734622249681,-500.0,0.00022739,4]
[346008685,1734622249690,-500.0,0.00022739,4]
[346008686,1734622249699,-500.0,0.00022739,4]
[346008687,1734622249709,-500.0,0.00022739,4]
[346008688,1734622249719,-500.0,0.00022739,4]
[346008689,1734622249728,-532.29,0.00022739,4]
[346008690,1734622249738,-500.0,0.00022739,4]
[346008691,1734622249747,-500.0,0.00022739,4]
[346008692,1734622249756,-500.0,0.00022739,4]
[346008693,1734622249765,-689.26,0.00022739,4]
[346008694,1734622249775,-500.0,0.00022739,4]
[346008695,1734622249784,-500.0,0.00022739,4]
[346008696,1734622249793,-556.73,0.00022739,4]
[346008697,1734622249803,-1204.5,0.00022739,4]
[346008698,1734622249816,-500.0,0.00022739,4]
[346008699,1734622249825,-654.56,0.00022739,4]
[346008700,1734622249834,-500.0,0.00022739,4]
[346008701,1734622249844,-619.34,0.00022739,4]
[346008702,1734622249853,-500.0,0.00022739,4]
[346008703,1734622249862,-500.0,0.00022739,4]
[346008704,1734622249871,-500.0,0.00022739,4]
[346008705,1734622250006,-551.62,0.00022739,4]
[346008706,1734622250020,-500.0,0.00022739,4]
[346008707,1734622250030,-500.0,0.00022739,4]
[346008708,1734622250039,-508.97,0.00022739,4]
[346008709,1734622250048,-1149.38,0.00022739,4]
[346008710,1734622250059,-500.0,0.00022739,4]
[346008711,1734622250069,-500.0,0.00022739,4]
[346008712,1734622250078,-500.0,0.00022739,4]
[346008713,1734622250087,-861.63,0.00022739,4]
[346008714,1734622250096,-500.0,0.00022739,4]
[346008715,1734622250106,-504.23,0.00022739,4]
[346008716,1734622250116,-500.0,0.00022739,4]
[346008717,1734622250125,-500.0,0.00022739,4]
[346008718,1734622250135,-500.0,0.00022739,4]
[346008719,1734622250147,-500.0,0.00022739,4]
[346008720,1734622250157,-150.0,0.00022775,4]
[346008721,1734622250166,-150.0,0.00022775,4]
[346008722,1734622250175,-462.7431675,0.00022788,2]
[346008723,1734622250185,-659.354,0.00022817,2]
[346008724,1734622250195,-6219.30047888,0.00022889,2]
[346008725,1734622250204,-1038.04,0.000229,2]
[346008726,1734622250214,-600.0,0.000229,8]
[346008727,1734622250224,-329.59,0.00022974,2]
[346008728,1734622250234,-300.0,0.00023,2]
[346008729,1734622250243,-150.0,0.0002301,4]
[346008730,1734622250253,-150.0,0.0002301,4]
[346008731,1734622250262,-500.0,0.00023013,4]
[346008732,1734622250272,-500.0,0.00023013,4]
[346008733,1734622250281,-500.0,0.00023013,4]
[346008734,1734622250291,-500.0,0.00023013,4]
[346008735,1734622250300,-500.0,0.00023013,4]
[346008736,1734622250314,-500.0,0.00023013,4]
[346008737,1734622250323,-500.0,0.00023013,4]
[346008738,1734622250332,-500.0,0.00023013,4]
[346008739,1734622250342,-500.0,0.00023013,4]
[346008740,1734622250351,-500.0,0.00023013,4]
[346008741,1734622250360,-500.0,0.00023013,4]
[346008742,1734622250369,-500.0,0.00023013,4]
[346008743,1734622250379,-500.0,0.00023013,4]
[346008744,1734622250388,-500.0,0.00023013,4]
[346008745,1734622250398,-500.0,0.00023013,4]
[346008746,1734622250408,-500.0,0.00023013,4]
[346008747,1734622250418,-313.04,0.00023013,4]
[346008748,1734622250427,-500.0,0.00023013,4]
[346008749,1734622250437,-1263.3,0.00023013,4]
[346008750,1734622250446,-2050.87,0.00023013,4]
[346008751,1734622250456,-500.0,0.00023013,4]
[346008752,1734622250465,-500.0,0.00023013,4]
[346008753,1734622250475,-500.0,0.00023013,4]
[346008754,1734622250484,-500.0,0.00023013,4]
[346008755,1734622250494,-585.97,0.00023013,4]
[346008756,1734622250503,-500.0,0.00023013,4]
[346008757,1734622250513,-500.0,0.00023013,4]
[346008758,1734622250522,-758.23,0.00023013,4]
[346008759,1734622250531,-500.0,0.00023013,4]
[346008760,1734622250541,-500.0,0.00023013,4]
[346008761,1734622250551,-500.0,0.00023013,4]
[346008762,1734622250563,-500.0,0.00023013,4]
[346008763,1734622250577,-500.0,0.00023013,4]
[346008764,1734622250587,-500.0,0.00023013,4]
[346008765,1734622250596,-500.0,0.00023013,4]
[346008766,1734622250605,-500.0,0.00023013,4]
[346008767,1734622250614,-500.0,0.00023013,4]
[346008768,1734622250624,-445.08,0.00023013,4]
[346008769,1734622250633,-879.33,0.00023013,4]
[346008770,1734622250642,-846.48,0.00023013,4]
[346008771,1734622250651,-500.0,0.00023013,4]
[346008772,1734622250661,-500.0,0.00023013,4]
[346008773,1734622250670,-500.0,0.00023013,4]
[346008774,1734622250679,-1741.38,0.00023013,4]
[346008775,1734622250689,-1708.14,0.00023013,4]
[346008776,1734622250699,-884.91,0.00023013,4]
[346008777,1734622250709,-500.0,0.00023013,4]
[346008778,1734622250719,-632.57,0.00023013,4]
[346008779,1734622250728,-500.0,0.00023013,4]
[346008780,1734622250738,-608.39,0.00023013,4]
[346008781,1734622250748,-500.0,0.00023013,4]
[346008782,1734622250758,-692.42,0.00023013,4]
[346008783,1734622250767,-363.31761312,0.00023013,4]
[346008784,1734622250777,-500.0,0.00023013,4]
[346008785,1734622250786,-534.24056632,0.00023013,4]
[346008786,1734622250796,-500.0,0.00023013,4]
[346008787,1734622250805,-500.0,0.00023013,4]
[346008788,1734622250835,-500.0,0.00023013,4]
[346008789,1734622250845,-500.0,0.00023013,4]
[346008790,1734622250856,-532.29,0.00023013,4]
[346008791,1734622250866,-500.0,0.00023013,4]
[346008792,1734622250875,-584.43762791,0.00023013,4]
[346008793,1734622250885,-500.0,0.00023013,4]
[346008794,1734622250894,-689.26,0.00023013,4]
[346008795,1734622250904,-500.0,0.00023013,4]
[346008796,1734622250914,-500.0,0.00023013,4]
[346008797,1734622250923,-556.73,0.00023013,4]
[346008798,1734622250932,-1204.5,0.00023013,4]
[346008799,1734622250942,-500.0,0.00023013,4]
[346008800,1734622250951,-654.56,0.00023013,4]
[346008801,1734622250961,-500.0,0.00023013,4]
[346008802,1734622250971,-619.34,0.00023013,4]
[346008803,1734622250981,-500.0,0.00023013,4]
[346008804,1734622250991,-500.0,0.00023013,4]
[346008805,1734622251001,-500.0,0.00023013,4]
[346008806,1734622251011,-551.62,0.00023013,4]
[346008807,1734622251020,-500.0,0.00023013,4]
[346008808,1734622251030,-500.0,0.00023013,4]
[346008809,1734622251039,-508.97,0.00023013,4]
[346008810,1734622251049,-1149.38,0.00023013,4]
[346008811,1734622251058,-500.0,0.00023013,4]
[346008812,1734622251067,-500.0,0.00023013,4]
[346008813,1734622251077,-861.63,0.00023013,4]
[346008814,1734622251087,-500.0,0.00023013,4]
[346008815,1734622251096,-500.0,0.00023013,4]
[346008816,1734622251105,-504.23,0.00023013,4]
[346008817,1734622251114,-500.0,0.00023013,4]
[346008818,1734622251124,-500.0,0.00023013,4]
[346008819,1734622251133,-500.0,0.00023013,4]
[346008820,1734622251146,-500.0,0.00023013,4]
[346008821,1734622251155,-470.98,0.00023133,2]
[346008822,1734622251164,-6219.30047888,0.00023191,2]
[346008823,1734622251173,-462.7431675,0.0002321,2]
[346008824,1734622251184,-150.0,0.00023245,4]
[346008825,1734622251194,-150.0,0.00023245,4]
[346008826,1734622251203,-459.938,0.0002328,2]
[346008827,1734622251213,-269.74,0.00023287,4]
[346008828,1734622251222,-500.0,0.00023287,4]
[346008829,1734622251231,-417.25627998,0.00023287,4]
[346008830,1734622251240,-500.0,0.00023287,4]
[346008831,1734622251249,-500.0,0.00023287,4]
[346008832,1734622251258,-500.0,0.00023287,4]
[346008833,1734622251268,-500.0,0.00023287,4]
[346008834,1734622251278,-408.4963124,0.00023287,4]
[346008835,1734622251287,-197.26536815,0.00023287,4]
[346008836,1734622251296,-500.0,0.00023287,4]
[346008837,1734622251307,-500.0,0.00023287,4]
[346008838,1734622251316,-500.0,0.00023287,4]
[346008839,1734622251342,-463.14301297,0.00023287,4]
[346008840,1734622251351,-607.77395934,0.00023287,4]
[346008841,1734622251360,-438.28,0.00023287,4]
[346008842,1734622251369,-500.0,0.00023287,4]
[346008843,1734622251379,-500.0,0.00023287,4]
[346008844,1734622251388,-1263.3,0.00023287,4]
[346008845,1734622251397,-2050.87,0.00023287,4]
[346008846,1734622251406,-456.69646365,0.00023287,4]
[346008847,1734622251415,-500.0,0.00023287,4]
[346008848,1734622251425,-500.0,0.00023287,4]
[346008849,1734622251434,-500.0,0.00023287,4]
[346008850,1734622251443,-585.97,0.00023287,4]
[346008851,1734622251452,-500.0,0.00023287,4]
[346008852,1734622251461,-500.0,0.00023287,4]
[346008853,1734622251471,-758.23,0.00023287,4]
[346008854,1734622251480,-500.0,0.00023287,4]
[346008855,1734622251489,-500.0,0.00023287,4]
[346008856,1734622251498,-500.0,0.00023287,4]
[346008857,1734622251508,-500.0,0.00023287,4]
[346008858,1734622251517,-500.0,0.00023287,4]
[346008859,1734622251526,-500.0,0.00023287,4]
[346008860,1734622251535,-500.0,0.00023287,4]
[346008861,1734622251545,-500.0,0.00023287,4]
[346008862,1734622251554,-500.0,0.00023287,4]
[346008863,1734622251563,-879.33,0.00023287,4]
[346008864,1734622251572,-846.48,0.00023287,4]
[346008865,1734622251582,-500.0,0.00023287,4]
[346008866,1734622251591,-500.0,0.00023287,4]
[346008867,1734622251600,-500.0,0.00023287,4]
[346008868,1734622251609,-1741.38,0.00023287,4]
[346008869,1734622251619,-1708.14,0.00023287,4]
[346008870,1734622251628,-884.91,0.00023287,4]
[346008871,1734622251637,-500.0,0.00023287,4]
[346008872,1734622251646,-632.57,0.00023287,4]
[346008873,1734622251655,-456.78,0.00023287,4]
[346008874,1734622251664,-608.39,0.00023287,4]
[346008875,1734622251674,-500.0,0.00023287,4]
[346008876,1734622251683,-692.42,0.00023287,4]
[346008877,1734622251693,-500.0,0.00023287,4]
[346008878,1734622251702,-500.0,0.00023287,4]
[346008879,1734622251711,-500.0,0.00023287,4]
[346008880,1734622251721,-500.0,0.00023287,4]
[346008881,1734622251730,-532.29,0.00023287,4]
[346008882,1734622251740,-500.0,0.00023287,4]
[346008883,1734622251750,-500.0,0.00023287,4]
[346008884,1734622251759,-689.26,0.00023287,4]
[346008885,1734622251768,-500.0,0.00023287,4]
[346008886,1734622251778,-500.0,0.00023287,4]
[346008887,1734622251789,-556.73,0.00023287,4]
[346008888,1734622251805,-1204.5,0.00023287,4]
[346008889,1734622251814,-500.0,0.00023287,4]
[346008890,1734622251825,-654.56,0.00023287,4]
[346008891,1734622251835,-500.0,0.00023287,4]
[346008892,1734622251862,-619.34,0.00023287,4]
[346008893,1734622251871,-500.0,0.00023287,4]
[346008894,1734622251880,-500.0,0.00023287,4]
[346008895,1734622251890,-500.0,0.00023287,4]
[346008896,1734622251899,-551.62,0.00023287,4]
[346008897,1734622251908,-500.0,0.00023287,4]
[346008898,1734622251917,-500.0,0.00023287,4]
[346008899,1734622251927,-508.97,0.00023287,4]
[346008900,1734622251936,-1149.38,0.00023287,4]
[346008901,1734622251945,-500.0,0.00023287,4]
[346008902,1734622251955,-500.0,0.00023287,4]
[346008903,1734622251964,-861.63,0.00023287,4]
[346008904,1734622251973,-500.0,0.00023287,4]
[346008905,1734622251983,-500.0,0.00023287,4]
[346008906,1734622251993,-504.23,0.00023287,4]
[346008907,1734622252003,-500.0,0.00023287,4]
[346008908,1734622252012,-500.0,0.00023287,4]
[346008909,1734622252022,-500.0,0.00023287,4]
[346008910,1734622252031,-170.84638508,0.00023316,2]
[346008911,1734622252041,-500.0,0.00023356,2]
[346008912,1734622252050,-3266.28902017,0.000234,2]
[346008913,1734622252059,-206.85673995,0.000234,2]
[346008914,1734622252069,-271.08085515,0.00023479,4]
[346008915,1734622252079,-276.19922079,0.00023479,4]
[346008916,1734622252089,-281.82049323,0.00023479,4]
[346008917,1734622252099,-150.0,0.00023479,4]
[346008918,1734622252108,-20465.0,0.00023479,2]
[346008919,1734622252118,-166.09,0.0002349,2]
[346008920,1734622252128,-581.48899347,0.0002349,2]
[346008921,1734622252139,-581.48899347,0.0002349,2]
[346008922,1734622252151,-6219.30047888,0.00023493,2]
[346008923,1734622252161,-300.0,0.00023499,2]
[346008924,1734622252171,-666.0,0.00023499,2]
[346008925,1734622252180,-500.0,0.00023499,2]
[346008926,1734622252191,-511.18281501,0.00023499,2]
[346008927,1734622252201,-999.0,0.00023499,2]
[346008928,1734622252210,-356.37245516,0.00023499,2]
[346008929,1734622252221,-421560.11667879,0.000235,3]
[346008930,1734622252231,-332521.05707668,0.000235,4]
[346008931,1734622252387,-31021.03615,0.000235,4]
[346008932,1734622252400,-957.87001,0.000235,4]
[346008933,1734622252422,-500.0,0.00022465,4]
[346008934,1734622252471,-500.0,0.00023287,4]
[346008935,1734622252482,-106360.69346742,0.000235,4]
[346008936,1734622252580,-500.0,0.00021917,4]
[346008937,1734622252590,-500.0,0.00022191,4]
[346008938,1734622252599,-500.0,0.00022465,4]
[346008939,1734622252609,-500.0,0.00022739,4]
[346008940,1734622252618,-500.0,0.00022739,4]
[346008941,1734622252628,-500.0,0.00023013,4]
[346008942,1734622252636,-500.0,0.00023013,4]
[346008943,1734622252645,-276.83797146,0.00023287,4]
[346008944,1734622252654,-500.0,0.00023287,4]
[346008945,1734622252664,-11297.95766674,0.000235,4]
[346008946,1734622252683,-494.14,0.000235,4]
[346008947,1734622252694,-1615.0,0.000235,4]
[346008948,1734622252706,-891.05000031,0.000235,4]
[346008949,1734622252717,-1179.56290355,0.000235,4]
[346008950,1734622252731,-10023.9946,0.000235,4]
[346008951,1734622252748,-1041653.83246935,0.000235,4]
[346008952,1734622252759,-4751.43200001,0.000235,4]
[346008953,1734622252771,-13056.4070008,0.000235,4]
[346008954,1734622252786,-508.53,0.0002288,2]
[346008955,1734622252795,-49950.13695449,0.000235,4]
[346008956,1734622252811,-24418.87687541,0.000235,4]
[346008957,1734622252822,-41399.99967,0.000235,4]
[346008958,1734622252833,-2229.83362644,0.000235,4]
[346008959,1734622252923,-8560.07250956,0.000235,4]
[346008960,1734622252934,-10787.49999984,0.000235,4]
[346008961,1734622252946,-7002.2,0.000235,4]
[346008962,1734622252957,-153907.5379314,0.000235,4]
[346008963,1734622252968,-1325.2359382,0.000235,4]
[346008964,1734622252980,-2482.50469129,0.000235,4]
[346008965,1734622252991,-25000.0,0.000235,4]
[346008966,1734622253002,-1828.433986,0.000235,4]
[346008967,1734622253079,-1060.01062134,0.000235,4]
[346008968,1734622253091,-587.36598126,0.000235,4]
[346008969,1734622253102,-2486.86093951,0.000235,4]
[346008970,1734622253114,-33552.74445002,0.000235,4]
[346008971,1734622253125,-883.86659874,0.000235,4]
[346008972,1734622253137,-5813.37246526,0.000235,4]
[346008973,1734622253188,-25712.91059682,0.000235,4]
[346008974,1734622253199,-69000.0026,0.000235,4]
[346008975,1734622253210,-5014.008,0.000235,4]
[346008976,1734622253222,-960.80601933,0.000235,4]
[346008977,1734622253234,-1499.46,0.000235,4]
[346008978,1734622253246,-403.24,0.000235,4]
[346008979,1734622253306,-5400.77444253,0.000235,4]
[346008980,1734622253319,-32451.37237657,0.000235,4]
[346008981,1734622253330,-23652.0,0.000235,4]
[346008982,1734622253348,-9980.6,0.000235,4]
[346008983,1734622253367,-3596.99340001,0.000235,4]
[346008984,1734622253379,-5028.0424128,0.000235,4]
[346008985,1734622253391,-4701.06749705,0.000235,4]
[346008988,1734622690084,450.0,0.00013,2]
[346008989,1734622691171,500.0,0.00015,2]
[346008990,1734622818634,157.6,0.00021548,30]
[346008991,1734622965735,-766.62,0.00020197,2]
[346008992,1734622965763,-3221.0,0.000202,2]
[346008993,1734622965785,-998.099799,0.00021,2]
[346008994,1734622965809,-743.87515383,0.00021064,2]
[346008995,1734622965830,-1646.64,0.00021146,2]
[346008996,1734622965853,-500.0,0.00021164,2]
[346008997,1734622965877,-508.63,0.00021197,2]
[346008998,1734622965900,-508.6,0.00021197,2]
[346008999,1734622965925,-500.48,0.00021197,2]
[346009000,1734622965948,-491.41,0.00021197,2]
[346009001,1734622965972,-501.42,0.00021197,2]
[346009002,1734622965995,-492.59,0.00021197,2]
[346009003,1734622966023,-500.27,0.00021197,2]
[346009004,1734622966046,-507.15,0.00021197,2]
[346009005,1734622966069,-493.44,0.00021197,2]
[346009006,1734622966093,-509.15,0.00021197,2]
[346009007,1734622966117,-492.12,0.00021197,2]
[346009008,1734622966140,-506.91,0.00021197,2]
[346009009,1734622966162,-502.23,0.00021197,2]
[346009010,1734622966185,-506.29,0.00021197,2]
[346009011,1734622966209,-491.29,0.00021197,2]
[346009012,1734622966232,-499.72,0.00021197,2]
[346009013,1734622966258,-509.77,0.00021197,2]
[346009014,1734622966282,-505.52,0.00021197,2]
[346009015,1734622966305,-499.45,0.00021197,2]
[346009016,1734622966328,-504.56,0.00021197,2]
[346009017,1734622966351,-509.85,0.00021197,2]
[346009018,1734622966375,-506.9,0.00021197,2]
[346009019,1734622966398,-494.79,0.00021197,2]
[346009020,1734622966427,-490.22,0.00021197,2]
[346009021,1734622966451,-501.26,0.00021197,2]
[346009022,1734622966474,-504.5,0.00021197,2]
[346009023,1734622966499,-498.82,0.00021197,2]
[346009024,1734622966528,-502.07,0.00021197,2]
[346009025,1734622966552,-503.58,0.000212,2]